Cogmind - Beta 15 @@@ ROGUE MODE // 2025.08.17 @ 17:07:15 Player: winnking222 Result: Self-destructed Performance ------------- Evolutions (5) 2500 Regions Visited (7) 1400 Robots Destroyed (65) 325 Value Destroyed (1928) 1928 Prototype IDs (15) 300 Alien Tech Used (0) 0 Bonus (3061) 3061 TOTAL SCORE: 9514 Bonus ------- Follower Combat Kills 261 Delivered SUBCON Basin 2000 Registered with UFD 300 Met Optimus in HQ 500 Cogmind --------- Core Integrity 103/1000 Matter 291/300 Energy 27/100 System Corruption 10% Temperature Cool (0) Movement Core (400) Ox7 Location -5/Extension Parts ------- > --- POWER (2) -------- (None) > --- PROPULSION (5) --- (None) > --- UTILITY (7) ------ Large Storage Unit Improved Signal Interpreter Advanced Targeting Computer Makeshift Hacking Suite > --- WEAPON (3) ------- Phasing Sabre > --- INVENTORY (15) --- Advanced Cooling System Matter Compressor (250) Seismic Detector Improved Weapon Cycler Improved Transmission Jammer Improved Medium Armor Plating Improved Hacking Suite A0-MCA's Component Scanner Tech Extrapolator Rainbow Chip CPS Tube (2) DRS Beacon (Ready) Peak State ------------ > --- POWER ------------ Improved Deuterium Engine Angular Momentum Engine > --- PROPULSION ------- Compact Wheel Armored Wheel Antigrav System Linear Gravjet Linear Gravjet > --- UTILITY ---------- Advanced Cooling System Large Storage Unit Improved Signal Interpreter Advanced Targeting Computer Core Analyzer Makeshift Light Armor Plating Makeshift Hacking Suite > --- WEAPON ----------- High-powered Shock Rifle Tesla Rifle Tesla Rifle > --- INVENTORY -------- Compact Wheel Matter Compressor Improved Sensor Array Seismic Detector Improved Weapon Cycler Improved Transmission Jammer Improved Hacking Suite A0-MCA's Component Scanner Tech Extrapolator Rainbow Chip Hypervelocity Gauss Cannon Heavy Rocket Launcher CPS Tube Shrapnel Trap DRS Beacon [Rating: 79] Favorites ----------- Power Subdweller Power Source Engine Subdweller Power Source Power Core Light Nuclear Core Propulsion Armored Wheel Treads Light Treads Wheel Armored Wheel Hover Unit Linear Gravjet Utility Large Storage Unit Device Seismic Detector Storage Large Storage Unit Processor Advanced Targeting Computer Hackware Makeshift Hacking Suite Protection Makeshift Light Armor Plating Weapon Subdweller Machine Gun Energy Gun Tesla Rifle Energy Cannon Subdweller Beam Cannon Ballistic Gun Subdweller Machine Gun Ballistic Cannon Hypervelocity Gauss Cannon Launcher Rocket Launcher Special Weapon CPS Tube Impact Weapon Thunder Hammer Slashing Weapon Phasing Sabre Build | -11 -10 -10 -10 -7 -7 -5 -5 ------- Run | Yrd Mat Min Sub Rec Scr Fac Ext Slots Evolved 10 | . . . . . . 10 . Power 1 | . . . . . . 1 . Propulsion 3 | . . . . . . 3 . Utility 5 | . . . . . . 5 . Weapon 1 | . . . . . . 1 . Parts Attached 80 | 7 8 2 25 . 3 22 13 Power 11 | 1 . . 6 . 1 2 1 Engine 9 | 1 . . 6 . 1 1 . Core 2 | . . . . . . 1 1 Reactor . | . . . . . . . . Propulsion 24 | 2 3 . 7 . 1 7 4 Treads 2 | 2 . . . . . . . Leg . | . . . . . . . . Wheel 18 | . 3 . 7 . 1 3 4 Hover 4 | . . . . . . 4 . Flight . | . . . . . . . . Utility 18 | 2 2 1 4 . . 7 2 Device 8 | 1 . 1 1 . . 3 2 Storage 4 | 1 1 . 2 . . . . Processor 3 | . . . . . . 3 . Hackware 1 | . . . . . . 1 . Protection 2 | . 1 . 1 . . . . Artifact . | . . . . . . . . Weapon 27 | 2 3 1 8 . 1 6 6 Energy Gun 4 | 1 . . . . . 3 . Energy Cannon 1 | . . . 1 . . . . Ballistic Gun 11 | 1 3 . 6 . 1 . . Ballistic Cannon 1 | . . . . . . 1 . Launcher 2 | . . 1 . . . 1 . Special Weapon 1 | . . . . . . . 1 Impact Weapon 1 | . . . . . . 1 . Slashing Weapon 6 | . . . 1 . . . 5 Piercing Weapon . | . . . . . . . . Special Melee Weapon . | . . . . . . . . Unidentified Prototypes 2 | . . . 1 . . 1 . Parts Lost 34 | . . . 3 1 . 14 16 Power 5 | . . . . 1 . 3 1 Propulsion 13 | . . . 2 . . 5 6 Utility 6 | . . . 1 . . 1 4 Weapon 10 | . . . . . . 5 5 Highest Loss Streak 11 | . . . 1 1 . 11 7 To Critical Strikes 2 | . . . . . . . 2 Average Backups 16 | 4 11 15 13 22 20 11 11 Power 1 | . 1 2 1 3 1 . . Propulsion 1 | 2 3 4 2 1 1 2 . Utility 7 | 1 3 4 5 10 10 7 9 Weapon 4 | . 3 5 4 7 5 . 1 Tool/Special . | . . . . . . . . Unused Backups 41 | 1 5 1 9 . 14 3 8 Power 3 | . . . 1 . 2 . . Propulsion 8 | . 2 . 3 . 1 2 . Utility 18 | 1 2 . 1 . 5 1 8 Weapon 11 | . 1 1 4 . 5 . . Tool/Special 1 | . . . . . 1 . . Average Slot Usage (%) 88 | . 99 100 97 84 80 83 63 Engine 12 | . 14 14 13 13 11 4 . Treads 1 | . 14 . . . . . . Wheel 24 | . 13 28 27 28 27 9 15 Device 5 | . 13 14 4 . 4 6 7 Storage 12 | . 14 14 14 14 13 5 5 Processor 1 | . . . . . . 14 16 Protection 2 | . . . 8 . . 4 . Energy Cannon 6 | . . . 5 14 7 . . Ballistic Gun 16 | . 27 28 21 14 11 3 . Launcher 1 | . . . . . 3 3 . Peak Build Rating 79 | 7 12 13 35 35 21 79 55 Average Rating 21 | 5 9 12 20 21 17 54 42 On Entrance 17 | . 7 12 13 35 20 20 30 Naked Turns . | . . . . . . . . Heaviest Build 217 | 14 32 33 217 217 217 64 51 Greatest Support 80 | 40 40 22 32 32 32 37 80 Greatest Overweight (x) 18 | 1 1 1 6 6 18 4 1 Average Overweight (x) 2 | . . 1 1 6 3 1 . Largest Inventory Capacity 35 | 8 15 15 35 35 35 15 15 Average Capacity 21 | 7 12 15 17 35 25 15 15 Most Carried 35 | 7 15 15 35 35 30 15 15 Average Carried 18 | 4 11 14 16 26 22 13 12 Final Capacity 35 | 8 15 15 35 35 15 15 15 Final Carried 35 | 6 15 15 35 29 15 13 12 Class Distribution -------------------- 43% | Mutant 33% | Commander-Mutant 15% | Hauler-Mutant 3% | Derelict-Gunner Dominant Class ---------------- Mutant | -10/Materials Mutant | -10/Mines Mutant | -10/Subcaves Hauler-Mutant | -7/Recycling Commander-Mutant | -7/Scraptown Derelict-Gunner | -5/Factory Mutant | -5/Extension Resources | -11 -10 -10 -10 -7 -7 -5 -5 ----------- Run | Yrd Mat Min Sub Rec Scr Fac Ext Matter Collected 2751 | 299 244 138 789 28 320 543 390 Remotely . | . . . . . . . . Salvage Created 2691 | 228 400 100 554 . . 636 773 Parts 154 | 26 23 11 44 . . 30 20 Haulers Intercepted 1 | . 1 . . . . . . Recyclers Shooed 2 | . . 1 . . . 1 . Parts Field Recycled . | . . . . . . . . Retrieved Matter . | . . . . . . . . Parts Self-Destructed 5 | . . . 5 . . . . Prevented . | . . . . . . . . Kills | -11 -10 -10 -10 -7 -7 -5 -5 ------- Run | Yrd Mat Min Sub Rec Scr Fac Ext Combat Hostiles Destroyed 47 | . 10 6 17 . . 8 6 Melee 4 | . . . . . . . 4 Guns 30 | . 10 5 12 . . 3 . Cannons 9 | . . . 3 . . 4 2 AOE 4 | . . 1 2 . . 1 . Classes Destroyed 11 | 2 4 . 1 . . 2 2 Worker 1 | . . . . . . 1 . Tunneler 7 | 7 . . . . . . . Hauler 1 | . 1 . . . . . . Recycler 6 | 1 . . . . . 2 3 Watcher 3 | . 2 . . . . . 1 Swarmer 14 | . 4 4 3 . . 3 . Grunt 11 | . 6 2 . . . . 3 Sentry 2 | . . . . . . . 2 Hunter 1 | . . . . . . . 1 Programmer 5 | . . . . . . 5 . Subdweller 14 | . . . 14 . . . . Best Kill Streak 5 | 3 3 2 3 . . 3 5 Combat Bots Only 3 | . 3 2 3 . . 3 3 Max Kills in Single Turn 2 | 1 1 1 2 . . 1 1 Gunslinging . | . . . . . . . . Exploded 2 | . . 1 2 . . 1 . Melee 1 | . . . . . . . 1 Uniques/NPCs Destroyed . | . . . . . . . . Combat | -11 -10 -10 -10 -7 -7 -5 -5 -------- Run | Yrd Mat Min Sub Rec Scr Fac Ext Hostile Shots Fired 383 | . 45 32 55 75 . 86 90 Missed 102 | . 11 9 17 25 . 16 24 Hits 281 | . 34 23 38 50 . 70 66 Projectile 281 | . 34 23 38 50 . 70 66 AOE 2 | . . . 2 . . . . Critical Strikes 14 | . . . 2 . . 10 2 Damage Taken 4725 | . 327 205 930 242 . 1683 1338 Core 1120 | . 51 29 83 60 . 307 590 Absorbed by Shields 210 | . . . . 185 . . 25 Core Remaining (%) 55 | 100 . . . . 10 . . Volleys Fired 283 | 29 44 19 109 6 . 62 14 Largest 3 | 2 2 2 2 2 . 3 1 Hottest 190 | 60 46 46 110 110 . 190 51 Shots Fired 473 | 45 88 35 179 11 . 100 15 Gun 373 | 45 88 32 147 6 . 55 . Cannon 88 | . . . 31 5 . 37 15 Launcher 12 | . . 3 1 . . 8 . Special . | . . . . . . . . Kinetic 374 | 29 88 32 147 6 . 57 15 Thermal 36 | . . . 31 5 . . . Explosive 12 | . . 3 1 . . 8 . Electromagnetic 51 | 16 . . . . . 35 . Robot Hit Streak 15 | 10 8 6 10 6 . 15 8 Robot Miss Streak 7 | 2 5 7 3 1 . 4 2 Penetration Max . | . . . . . . . . Secondary Targets . | . . . . . . . . Shots Hit Robots 285 | 33 54 19 73 9 . 58 39 Core Hits 118 | 12 26 8 29 2 . 27 14 Critical Kills 8 | . . . 1 . . 5 2 Critical Parts Destroyed 7 | 1 . . . . . 5 1 Critical Strikes 23 | 1 . . 2 . . 11 9 Destroy 16 | 1 . . 2 . . 10 3 Corrupt 1 | . . . . . . 1 . Sever 6 | . . . . . . . 6 Melee Attacks 51 | . . . 13 . . . 38 Impact . | . . . . . . . . Slashing 51 | . . . 13 . . . 38 Piercing . | . . . . . . . . Sneak Attacks 3 | . . . . . . . 3 Combat Hostiles . | . . . . . . . . Follow-up Attacks 2 | . . . . . . . 2 Damage Inflicted 5381 | 327 484 327 1522 207 . 1030 1484 Guns 2820 | 327 484 216 1328 101 . 364 . Cannons 673 | . . . 86 106 . 336 145 Explosions 549 | . . 111 108 . . 330 . Melee 1339 | . . . . . . . 1339 Ramming . | . . . . . . . . Kinetic 2957 | 171 484 216 1328 101 . 512 145 Thermal 192 | . . . 86 106 . . . Explosive 549 | . . 111 108 . . 330 . Electromagnetic 344 | 156 . . . . . 188 . Impact . | . . . . . . . . Slashing 1339 | . . . . . . . 1339 Piercing . | . . . . . . . . Highest Corruption 12 | . . . . . . 12 12 Average Corruption 8 | . . . . . . 5 11 Corruption Purged 2 | . . . . . . . 2 Corruption Blocked . | . . . . . . . . Effects 39 | . . . . . . 15 24 Message Errors 6 | . . . . . . 3 3 Matter Fused 7 | . . . . . . 1 6 Heat Flow Errors 8 | . . . . . . 3 5 Energy Discharges 2 | . . . . . . . 2 Parts Rejected 3 | . . . . . . 3 . Parts Fused 1 | . . . . . . . 1 Data Loss (minor) 2 | . . . . . . 1 1 Data Loss (major) 3 | . . . . . . 1 2 Misfires 3 | . . . . . . 2 1 Misdirections 3 | . . . . . . . 3 Weapon Failures 1 | . . . . . . 1 . Overload Shots . | . . . . . . . . Overflow Damage 33 | . . . 3 . . 30 . Projectiles . | . . . . . . . . Explosions 33 | . . . 3 . . 30 . Melee . | . . . . . . . . Knockbacks 6 | . . . . . . 5 1 Impact . | . . . . . . . . Kinetic 6 | . . . . . . 5 1 Secondary . | . . . . . . . . Self-Inflicted Damage 284 | . . . . . . 284 . Shots 6 | . . . . . . 6 . Rammed . | . . . . . . . . Targets Rammed . | . . . . . . . . Kicked . | . . . . . . . . Crushed . | . . . . . . . . Highest Temperature 287 | 40 12 7 263 156 . 287 241 Average Temperature 57 | 18 6 4 45 62 . 71 112 Received Heat Transfer 845 | . 129 33 401 54 . . 228 Siege Activations . | . . . . . . . . Martial Activations . | . . . . . . . . Shielding Activations . | . . . . . . . . Robots Disrupted . | . . . . . . . . Combat Hostiles . | . . . . . . . . Robots Corrupted . | . . . . . . . . Combat Hostiles . | . . . . . . . . Parts Fried 2 | 2 . . . . . . . Impact Corruptions . | . . . . . . . . Robots Melted . | . . . . . . . . Combat Hostiles . | . . . . . . . . Parts Melted 2 | . . . 2 . . . . Heat Transferred 259 | . . . 111 148 . . . Parts Sabotaged . | . . . . . . . . Parts Stolen . | . . . . . . . . Parts Stripped . | . . . . . . . . Power Chain Reactions . | . . . . . . . . Alert | -11 -10 -10 -10 -7 -7 -5 -5 ------- Run | Yrd Mat Min Sub Rec Scr Fac Ext Maximum Alert Level . | . . . . . . . . Low Security (%) 100 | 100 100 100 . 100 . 100 100 Level 1 . | . . . . . . . . Level 2 . | . . . . . . . . Level 3 . | . . . . . . . . Level 4 . | . . . . . . . . Level 5 . | . . . . . . . . High Security . | . . . . . . . . Max Security . | . . . . . . . . Peak Influence 110 | 5 97 74 . 102 . 110 51 Initial 21 | . . . . 21 . . 21 Average 20 | 1 29 29 . 15 . 22 16 Influence Increases 1518 | 40 315 233 120 253 . 315 242 Destroy 0b10 Robot/C 800 | . 200 160 60 60 . 160 160 Destroy 0b10 Robot/NC 100 | 40 15 . . . . 25 20 Destroy Leader 130 | . 46 30 . . . 22 32 Allied During Kill 40 | . . 4 . 21 . 1 14 Trap Triggered on 0b10 10 | . . . . . . . 10 Successful Hack 19 | . 9 . . 4 . . 6 Select Force Hacks 150 | . . . . 150 . . . Disable Machine 30 | . . . . . . 30 . Destroy Structure 89 | . . 24 . 3 . 62 . Lose Combat Pursuer 150 | . 45 15 60 15 . 15 . Influence Decreases 1518 | 40 315 207 102 297 . 272 285 Entered New Map 59 | . . . 14 23 . . 22 Time Decay 1261 | 40 315 207 76 257 . 192 174 Lost Part 160 | . . . 12 10 . 80 58 Lost Ally 38 | . . . . 7 . . 31 Squads Dispatched 7 | . 1 . . . . 5 1 Investigation 2 | . . . . . . 2 . Extermination 3 | . . . . . . 3 . Reinforcement 2 | . 1 . . . . . 1 Assault . | . . . . . . . . Garrison . | . . . . . . . . Intercept . | . . . . . . . . Searches Triggered . | . . . . . . . . Construction Impeded . | . . . . . . . . Haulers Reinforced . | . . . . . . . . Active Scanning Responses . | . . . . . . . . Cargo Convoy Interrupts . | . . . . . . . . Stealth | -11 -10 -10 -10 -7 -7 -5 -5 --------- Run | Yrd Mat Min Sub Rec Scr Fac Ext Distress Signals 1 | . 1 . . . . . . Communications Jammed . | . . . . . . . . Distress Signals . | . . . . . . . . Times Spotted 82 | . 18 8 22 5 . 12 17 Peak Tracking Total 6 | . 6 3 4 2 . 3 6 Tactical Retreats 7 | . 2 1 2 1 . 1 . Traps | -11 -10 -10 -10 -7 -7 -5 -5 ------- Run | Yrd Mat Min Sub Rec Scr Fac Ext Traps Triggered 5 | . . . 2 . . . 3 Indirectly . | . . . . . . . . Trap Hack Attempts . | . . . . . . . . Triggered . | . . . . . . . . Disarmed . | . . . . . . . . Reprogrammed . | . . . . . . . . Reused 1 | . . . . . . . 1 Traps Extracted . | . . . . . . . . Installed 1 | . . . . . . . 1 Triggered 1 | . . . . . . . 1 Most Traps Carried 1 | . . . 1 1 1 1 1 Machines | -11 -10 -10 -10 -7 -7 -5 -5 ---------- Run | Yrd Mat Min Sub Rec Scr Fac Ext Machines Disabled 3 | . . . 1 . . 2 . Max in Single Turn 1 | . . . 1 . . 1 . Machines Repaired . | . . . . . . . . Machines Dismantled . | . . . . . . . . Machines Sabotaged . | . . . . . . . . Overloaded Fab Kills . | . . . . . . . . Hacking | -11 -10 -10 -10 -7 -7 -5 -5 --------- Run | Yrd Mat Min Sub Rec Scr Fac Ext Machines Accessed 28 | . 5 . 4 10 3 5 1 Terminals 13 | . 5 . . 5 . 2 1 Fabricators . | . . . . . . . . Repair Stations . | . . . . . . . . Recycling Units 8 | . . . . 5 . 3 . Scanalyzers . | . . . . . . . . Garrison Access . | . . . . . . . . Total Hacks 59 | . 12 . 9 15 12 9 2 Successful 45 | . 11 . 9 9 12 3 1 Failed 14 | . 1 . . 6 . 6 1 Catastrophic 3 | . . . . 2 . 1 . Database Lockouts . | . . . . . . . . Manual 31 | . 10 . . 15 . 6 . Terminals 28 | . 12 . . 10 . 4 2 Fabricators . | . . . . . . . . Repair Stations . | . . . . . . . . Recycling Units 10 | . . . . 5 . 5 . Scanalyzers . | . . . . . . . . Garrison Access . | . . . . . . . . Terminal Hacks 25 | . 2 . 9 . 12 1 1 Record 12 | . . . 6 . 6 . . Robot Analysis 6 | . . . . . 6 . . Prototype ID Bank 1 | . 1 . . . . . . Open Door 3 | . . . 1 . . 1 1 Hauler Manifests 1 | . 1 . . . . . . Proto ID Catalog 1 | . . . 1 . . . . Release Object 1 | . . . 1 . . . . Fabricator Hacks . | . . . . . . . . Repair Station Hacks . | . . . . . . . . Recycling Unit Hacks . | . . . . . . . . Scanalyzer . | . . . . . . . . Garrison Access Hacks . | . . . . . . . . Unauthorized Hacks 20 | . 9 . . 9 . 2 . Terminals 13 | . 9 . . 4 . . . Botnet 4 | . 4 . . . . . . Skim 9 | . 5 . . 4 . . . Fabricators . | . . . . . . . . Repair Stations . | . . . . . . . . Recycling Units 7 | . . . . 5 . 2 . Tunnel 5 | . . . . 5 . . . Fedlink 2 | . . . . . . 2 . Scanalyzers . | . . . . . . . . Garrison Access . | . . . . . . . . Data Cores Recovered . | . . . . . . . . Used . | . . . . . . . . Hacking Detections 8 | . 1 . . 4 . 2 1 Full Trace Events 1 | . . . . 1 . . . Feedback Events . | . . . . . . . . Feedback Blocked . | . . . . . . . . Robot Schematics Acquired . | . . . . . . . . Robots Built . | . . . . . . . . Authchips . | . . . . . . . . Time . | . . . . . . . . Total Robot Build Rating . | . . . . . . . . Part Schematics Acquired . | . . . . . . . . Parts Built . | . . . . . . . . Authchips . | . . . . . . . . Time . | . . . . . . . . Total Part Build Rating . | . . . . . . . . Parts Repaired . | . . . . . . . . Time . | . . . . . . . . Parts Recycled . | . . . . . . . . Recycled Matter . | . . . . . . . . Retrieved Matter . | . . . . . . . . Retrieved Components . | . . . . . . . . Parts Scanalyzed . | . . . . . . . . Part Schematics Acquired . | . . . . . . . . Parts Damaged . | . . . . . . . . Bothacking | -11 -10 -10 -10 -7 -7 -5 -5 ------------ Run | Yrd Mat Min Sub Rec Scr Fac Ext Used RIF Installer . | . . . . . . . . Robots Hacked . | . . . . . . . . Non-combat . | . . . . . . . . Combat . | . . . . . . . . Robot Hacks Applied . | . . . . . . . . Relay Couplers Released . | . . . . . . . . Fabnet Peak Effective % . | . . . . . . . . Robots Rewired 18 | . . . . 16 . . 2 Allies Hacked . | . . . . . . . . Hacks Repelled . | . . . . . . . . Allies | -11 -10 -10 -10 -7 -7 -5 -5 -------- Run | Yrd Mat Min Sub Rec Scr Fac Ext Total Allies 20 | . . 1 . 16 . . 3 Largest Group 14 | . . 1 1 14 14 4 3 Highest-Rated Group 268 | . . 31 31 268 268 94 79 Highest-Rated Ally 40 | . . 31 31 40 40 40 39 Total Orders 12 | . . . . . 12 . . STAY 10 | . . . . . 10 . . FOLLOW 2 | . . . . . 2 . . Ally Attacks 54 | . . 6 12 16 . 9 11 Total Damage 918 | . . 104 144 353 . 151 166 Kills 10 | . . 2 1 3 . 2 2 Allies Corrupted . | . . . . . . . . Allies Melted . | . . . . . . . . Intel | -11 -10 -10 -10 -7 -7 -5 -5 ------- Run | Yrd Mat Min Sub Rec Scr Fac Ext Active Infowar (turns) 5183 | 98 1106 577 1220 . 1302 864 16 Sensors 1678 | . . . 1019 . . 643 16 Seismic 3505 | 98 1106 577 201 . 1302 221 . Robot Analysis Total 6 | . . . . . 6 . . Derelict Logs Recovered 9 | . . 2 2 . 5 . . Drone Launches . | . . . . . . . . Drone Recoveries . | . . . . . . . . Exploration | -11 -10 -10 -10 -7 -7 -5 -5 ------------- Run | Yrd Mat Min Sub Rec Scr Fac Ext Turns Passed 13889 | 323 1131 577 4067 2453 3808 1076 454 Spaces Moved 8558 | 161 569 497 2675 1277 2470 685 224 Core 118 | 21 . . . . 97 . . Treads 407 | 140 267 . . . . . . Legs . | . . . . . . . . Wheels 7914 | . 302 497 2675 1277 2373 566 224 Hover 119 | . . . . . . 119 . Flight . | . . . . . . . . Fastest Speed 50 | 50 100 100 100 172 50 90 90 Average Speed 134 | 146 128 100 116 172 150 110 102 Slowest Speed 360 | 160 160 100 172 172 360 150 115 Overloaded Moves . | . . . . . . . . Propulsion Burnouts . | . . . . . . . . Robots Hopped . | . . . . . . . . Potential Cave-ins 3 | . . . 3 . . . . Cave-ins Triggered . | . . . . . . . . Exploration Rate (%) 65 | 5 91 96 97 98 92 13 30 Regions Visited 7 Branch Regions 5 Pre-discovered Areas 12 | . 1 . 3 5 2 1 . Known Exits Taken 2 | . . . 1 . . 1 . Unknown Exits Taken 5 | 1 1 1 . 1 1 . . Scrap Searched 25 | . . 1 17 . 7 . . Spaces Dug 15 | . . . 15 . . . . Terrain Destroyed 116 | . . 35 23 1 . 57 . Melee 2 | . . . 2 . . . . Projectile 18 | . . . 16 1 . 1 . AOE 96 | . . 35 5 . . 56 . Terrain Rammed . | . . . . . . . . Walls Destroyed . | . . . . . . . . Machines Disabled . | . . . . . . . . Actions | -11 -10 -10 -10 -7 -7 -5 -5 --------- Run | Yrd Mat Min Sub Rec Scr Fac Ext Total 10472 | 209 901 543 3445 1522 2562 911 379 Wait 1143 | . 242 21 537 155 50 114 24 Move 8551 | 160 568 496 2674 1276 2469 684 224 Hop . | . . . . . . . . Pick Up 141 | 12 23 2 44 10 24 16 10 Fast Attach 14 | 2 . . . . 2 7 3 Attach 49 | 5 4 . 8 1 4 17 10 Detach 4 | . . . 1 . . 3 . Swap 39 | . 5 3 26 . 1 1 3 Drop 72 | 1 15 2 33 1 12 7 1 Fire 283 | 29 44 19 109 6 . 62 14 Melee 48 | . . . 13 . . . 35 Ram . | . . . . . . . . Kick . | . . . . . . . . Crush . | . . . . . . . . Escape Stasis 9 | . . . . . . . 9 Rewire 118 | . . . . 73 . . 45 Trap 1 | . . . . . . . 1 Miscellaneous . | . . . . . . . . Route ------- -11/Scrapyard -10/Materials (discovered 5 exits: [*Mat x3] / [*Min] / *Sub) -10/Mines (discovered 3 exits: [*Mat x2] / *Sub) -10/Subcaves (discovered 3 exits: [*Mat x2] / *Rec) -7/Recycling (discovered 2 exits: *Fac / *Scr) -7/Scraptown (discovered 2 exits: *Fac x2) -5/Factory (discovered 2 exits: *Upp / *Ext) -5/Extension History --------- Turn | Location | Event 6 | -11/Scrapyard | Discovered new exit (range 16) 324 | -11/Scrapyard | Entered Materials 325 | -10/Materials | Build established: Mutant 584 | -10/Materials | Discovered new exit (range 4) 720 | -10/Materials | Discovered new exit (range 14) 854 | -10/Materials | Discovered new exit (range 13) 1102 | -10/Materials | Discovered new exit (range 7) 1104 | -10/Materials | Discovered new exit (range 15) 1335 | -10/Materials | Learned 2 Mines zone layouts 1355 | -10/Materials | Learned Storage trap positions 1367 | -10/Materials | Learned Storage trap positions 1388 | -10/Materials | Learned Recycling recycling unit intel 1455 | -10/Materials | Entered Mines 1510 | -10/Mines | Received a Rocket Launcher from a helpful Derelict 1775 | -10/Mines | Discovered new exit (range 10) 1819 | -10/Mines | Learned location of 1 exit from Materials 1869 | -10/Mines | Discovered new exit (range 14) 1872 | -10/Mines | Received a Mining Laser from a helpful Derelict 1936 | -10/Mines | Found a damaged Exp. Sensor Array with a note attached 1940 | -10/Mines | Found Prototype Device 2019 | -10/Mines | Discovered new exit (range 8) 2032 | -10/Mines | Entered Subcaves 2032 | -10/Subcaves | Accompanied by 1 ally 2033 | -10/Subcaves | Identified exit to Recycling 2132 | -10/Subcaves | Curiously followed by a Cobbler waking with a query about "LVR3C" 2233 | -10/Subcaves | Identified Exp. Sensor Array 2812 | -10/Subcaves | Learned Materials garrison access intel 3169 | -10/Subcaves | Shifting Twisted Machinery released Barrage Gun 3172 | -10/Subcaves | Shifting Twisted Machinery released Sub. Power Source 3249 | -10/Subcaves | Core integrity fell below 50% 3359 | -10/Subcaves | Shifting Twisted Machinery released Sub. Monowheel 3544 | -10/Subcaves | Visited Clippyterm 3547 | -10/Subcaves | Learned location of Deep Caves (-7) 3547 | -10/Subcaves | Learned location of Section 7 (-2) 3551 | -10/Subcaves | Discovered new exit (range 8) 3583 | -10/Subcaves | A swath of the cavern ceiling suddenly collapsed 3721 | -10/Subcaves | Disturbed a concealed Subdweller 3834 | -10/Subcaves | Shifting Twisted Machinery released Mak. Shrapnel Gun 3835 | -10/Subcaves | Shifting Twisted Machinery released Battle Rifle 4262 | -10/Subcaves | Learned location of Zion (-7) 4262 | -10/Subcaves | Met a Zionite searching for "candidates" 4436 | -10/Subcaves | Visited 4L-MR0's lab 4454 | -10/Subcaves | Found Rainbow Chip 4757 | -10/Subcaves | Discovered new exit (range 6) 5629 | -10/Subcaves | Found SUBCON Basin 5896 | -10/Subcaves | Build established: Hauler-Mutant 6099 | -10/Subcaves | Entered Recycling 6100 | -7/Recycling | Loaded intel: 6 recycling unit locations 6501 | -7/Recycling | Scanned before Scraplab entrance 6525 | -7/Recycling | Entered Scraplab 6691 | -7/Recycling | Core integrity fell below 20% 6847 | -7/Recycling | Lost 3 allies 7025 | -7/Recycling | Discovered new exit (range 6) 8065 | -7/Recycling | Build established: Commander-Mutant 8476 | -7/Recycling | Discovered new exit (range 2) 8552 | -7/Recycling | Entered Scraptown 8552 | -7/Scraptown | Accompanied by 14 allies 8810 | -7/Scraptown | Visited Comm Corps 8890 | -7/Scraptown | Visited TADAMA 9168 | -7/Scraptown | Discovered new exit (range 11) 9251 | -7/Scraptown | Scanned Subdweller tech in exchange for log data 9254 | -7/Scraptown | Learned location of Extension (-5) 9256 | -7/Scraptown | Learned Research terminal intel 9257 | -7/Scraptown | Learned location of Quarantine (-2) 9259 | -7/Scraptown | Learned Research emergency access door positions 9261 | -7/Scraptown | Learned Factory terminal intel 9300 | -7/Scraptown | Visited Spacefarers 9309 | -7/Scraptown | Heard Great Nut preacher, LISTEN AND RECITE! 9445 | -7/Scraptown | Visited Awakened 9497 | -7/Scraptown | Visited Assassins FH 9540 | -7/Scraptown | Visited The Evicted 9583 | -7/Scraptown | Visited Fellowship of the Rings 9612 | -7/Scraptown | Visited UFD Registry 9612 | -7/Scraptown | Registered with UFD as "Fluxstep" 9653 | -7/Scraptown | Visited Analyses Database 9733 | -7/Scraptown | Visited Abandonware Association 9769 | -7/Scraptown | Learned abandonware demo "SHUTEYE.EXE" 9769 | -7/Scraptown | Learned abandonware demo "TRNCOAT.EXE" 9892 | -7/Scraptown | Visited Scrap Suit Storage 10061 | -7/Scraptown | Visited Supply Room 10230 | -7/Scraptown | Visited A0-MCA Data Center 10262 | -7/Scraptown | Visited Derelict Rescue Squad 10284 | -7/Scraptown | Found DRS Beacon 10368 | -7/Scraptown | Visited Scrapoid Pod Storage 10476 | -7/Scraptown | Visited Observation Area 10636 | -7/Scraptown | Delivered Scrap Shield to a Scientist 10655 | -7/Scraptown | Visited Supply Room 10829 | -7/Scraptown | Visited DA-N13 Charitable Foundation 10833 | -7/Scraptown | Found DCF Scrap (28 items) 11705 | -7/Scraptown | Given a B- rating by A0-MCA 11707 | -7/Scraptown | Found A0-MCA's Component Scanner 12277 | -7/Scraptown | Met Optimus 12277 | -7/Scraptown | Accepted into 0bPrime 12339 | -7/Scraptown | Discovered new exit (range 3) 12360 | -7/Scraptown | Entered Factory 12360 | -5/Factory | Accompanied by 4 allies 12360 | -5/Factory | Evolved 10 slots: Power x1, Propulsion x3, Utility x5, Weapon x1 12361 | -5/Factory | Loaded intel: 28 terminal locations 12482 | -5/Factory | Discovered new exit (range 16) 12637 | -5/Factory | Loaded intel: 8 recycling unit locations 12662 | -5/Factory | Learned location of Protoforge (-2) 12682 | -5/Factory | Identified exit to Upper Caves 12876 | -5/Factory | Build established: Derelict-Gunner 12891 | -5/Factory | Lost 3 allies 13155 | -5/Factory | Lost 3 parts (1p1n1w) 13384 | -5/Factory | System corruption reached 10% 13433 | -5/Factory | Discovered new exit (range 6) 13435 | -5/Factory | Identified exit to Extension 13436 | -5/Factory | Entered Extension 13453 | -5/Extension | Lost 11 parts (2p4n1u4w) 13668 | -5/Extension | Build established: Mutant 13741 | -5/Extension | Rescued a captive Derelict 13823 | -5/Extension | Core integrity fell below 50% 13855 | -5/Extension | Lost 3 allies 13861 | -5/Extension | Lost 4 parts (1p2n1u) 13885 | -5/Extension | Core integrity fell below 20% 13890 | -5/Extension | Self-destructed Last Messages --------------- 13868_ Wall collapses. 13870_ Com. Wheel destroyed. 13870_ G-50 Soldier destroyed. 13872_ Penetrated by Slug. 13875_ Y-64 Sentinel Imp. Treads severed. 13875_ Slug penetrates Wall. 13875_ Penetrated by Slug. 13877_ Phasing Sabre follow-up attack on Y-64 Sentinel. 13878_ Penetrated by Slug. 13878_ Adv. System Restoration Module destroyed. 13878_ Slug penetrates Wall. 13878_ Phasing Sabre destroyed. 13880_ Y-64 Sentinel KE Penetrator severed. 13881_ Slug penetrates Wall. 13881_ Critical hit (Destroy). 13881_ Com. Wheel destroyed. 13883_ System corrupted: Matter fused (-9). 13884_ Slug penetrates Wall. 13885_ Wall collapses. 13888_ Penetrated by Slug. Map ----- +----------------------------------------------------+ | | | | | ?????????????????????????????????????????????????? | | ?????????????????????????????????????????????????? | | ????????######???????????????????????????????????? | | ????????# #???????????????????????????????????? | | ######### #???????????????????????????????????? | | # + #???????????????????????????????????? | | # #??# #???????????????????????????????????? | | # #??# #???????????????????????????????????? | | #??? #??##"#??##?????????????????????????? | | #???##+##??#T ##T"#?????????????????????????? | | ##### #####!=# "####??????????????????????? | | % =*! #??????????????????????? | | # ##### ######!##### #??????????????????????? | | # #???#####????#%#???# #??????????????????????? | | # #????????????#%#???# #??????????????????????? | | #+##+#####????????#%#???# #??????????????????????? | | #????????#%#???# #??????????????????????? | | #????????# #???# #??????????????????????? | | #???????##+;#### #??????????????????????? | | #???????# h #!#??????????????????????? | | ##########???????# #=#??????????????????????? | | ?????????????????# [ ;%#??????????????????????? | | ?????????????????# ;[#??????????????????????? | | ?????????????????# * #@#??????????????????????? | | ?????????????????# / #=#??????????????????????? | | ?????????????????########Y#??????????????????????? | | ????????????????????????# #??????????????????????? | | ????????????????????????# #??????????????????????? | | ????????????????????????# #??????????????????????? | | ????????????????????????#Y#??????????????????????? | | ????????????????????????# #??????????????????????? | | ????????????????????????# #??????????????????????? | | ????????????????????????? ???????????????????????? | | ????????????????????????? ???????????????????????? | | ????????????????????????? ???????????????????????? | | ????????????????????????? ???????????????????????? | | ????????????????????????? ???????????????????????? | | ????????????????????????? ???????????????????????? | | ????????????????????????? ???????????????????????? | | ?????????????????????????????????????????????????? | | ?????????????????????????????????????????????????? | | ?????????????????????????????????????????????????? | | ?????????????????????????????????????????????????? | | ?????????????????????????????????????????????????? | | ?????????????????????????????????????????????????? | | ?????????????????????????????????????????????????? | | ?????????????????????????????????????????????????? | | ?????????????????????????????????????????????????? | +----------------------------------------------------+ Best States ------------- Heat Dissipation 71 Energy Generation 29 Energy Capacity 490 Matter Stores 300 Matter Capacity 300 Sight Range 16 Robot Scan Range 20 Terrain Scan Density 10 Additional Mass Support 9 Armor Coverage 150 Evasion (%) 50 Targeting Accuracy 8 Core Analysis 6 Recoil Reduction 2 Offensive Hacking 11 Item Schematics ----------------- None Robot Schematics ------------------ None Fabricated ------------ Nothing Repaired ---------- Nothing Alien Tech Used ----------------- None Achievements -------------- None Challenges ------------ None Game ------ Seed IonicIonWarhead Manual? 0 Play Time 01:30:10 Cumulative 139.1 hours Start 2025.08.17 @ 13:55:55 End 2025.08.17 @ 17:07:15 Sessions 1 Manual Loads 0 Difficulty Rogue Special Mode None Game No. 196 Rogue 196 Adventurer 0 Explorer 0 Win Type - Total 1 Types 1/0/0/0/0/0/0/0/0/0 Lore% 69 Gallery% 63 Achievement% 53 Wizard Run 0 Options --------- Layout 0 ASCII 0 Keyboard 0 Movement Mouse Keybinds 0 Fullscreen 1 Font 16/SmallcapsGlow Map View 75x55 Zoom Use 0% Tactical HUD 1 Map Filters NONE Filters NONE Steam 1 RUN: e94632ce-e19e-4192-a7d2-00746b95f091